Cogmind - Beta 13 @@@ ROGUE MODE // 2024.04.10 @ 23:20:04 Player: Copyrite Result: Self-destructed Performance ------------- Evolutions (1) 500 Regions Visited (3) 600 Robots Destroyed (20) 100 Value Destroyed (543) 543 Prototype IDs (0) 0 Alien Tech Used (0) 0 Bonus (0) 0 TOTAL SCORE: 1743 Bonus ------- None Cogmind --------- Core Integrity 251/400 Matter 76/300 Energy 250/250 System Corruption 0% Temperature Cool (0) Movement Core (150) Ox2 Location -9/Materials Parts ------- > --- POWER (2) -------- Ion Engine > --- PROPULSION (3) --- (None) > --- UTILITY (2) ------ ECM Suite > --- WEAPON (2) ------- (None) > --- INVENTORY (5) ---- Flight Unit Propulsion Shielding Datajack Peak State ------------ > --- POWER ------------ Ion Engine Light Ion Engine > --- PROPULSION ------- Flight Unit Flight Unit Flight Unit > --- UTILITY ---------- ECM Suite Propulsion Shielding > --- WEAPON ----------- Light Assault Rifle Datajack > --- INVENTORY -------- Flight Unit EM Pulse Gun Grenade Launcher [Rating: 9] Favorites ----------- Power Ion Engine Engine Ion Engine Propulsion Light Treads Treads Light Treads Leg Aluminum Leg Flight Unit Flight Unit Utility High-capacity Storage Unit Device ECM Suite Storage High-capacity Storage Unit Protection Propulsion Shielding Weapon Medium Laser Energy Gun Medium Laser Ballistic Gun Light Assault Rifle Launcher Grenade Launcher Special Melee Weapon Datajack Build | -11 -10 -10 -9 ------- Run | Yrd Mat Min Mat Slots Evolved 2 | . . . 2 Power 1 | . . . 1 Propulsion 1 | . . . 1 Utility . | . . . . Weapon . | . . . . Parts Attached 29 | 6 2 13 8 Power 4 | 1 . 2 1 Engine 4 | 1 . 2 1 Core . | . . . . Reactor . | . . . . Propulsion 9 | 2 . 6 1 Treads 4 | 2 . 2 . Leg 2 | . . 2 . Wheel . | . . . . Hover . | . . . . Flight 3 | . . 2 1 Utility 5 | 1 2 2 . Device 1 | . . 1 . Storage 2 | 1 1 . . Processor . | . . . . Hackware . | . . . . Protection 2 | . 1 1 . Artifact . | . . . . Weapon 11 | 2 . 3 6 Energy Gun 3 | 2 . . 1 Energy Cannon . | . . . . Ballistic Gun 2 | . . 2 . Ballistic Cannon . | . . . . Launcher 4 | . . 1 3 Special Weapon . | . . . . Impact Weapon . | . . . . Slashing Weapon . | . . . . Piercing Weapon . | . . . . Special Melee Weapon 2 | . . . 2 Unidentified Prototypes . | . . . . Parts Lost 7 | . . 1 6 Power 2 | . . 1 1 Propulsion 3 | . . . 3 Utility . | . . . . Weapon 2 | . . . 2 Highest Loss Streak 6 | . . 1 6 To Critical Strikes . | . . . . Average Slot Usage (%) 87 | . 90 88 75 Engine 15 | . 14 14 20 Treads 16 | . 28 12 . Leg 2 | . . 5 . Flight 8 | . . 9 28 Device 3 | . . 3 11 Storage 9 | . 14 8 . Protection 7 | . 5 9 6 Energy Gun 19 | . 28 18 1 Launcher 1 | . . 3 . Naked Turns . | . . . . Heaviest Build 49 | 13 49 49 12 Greatest Support 40 | 40 40 20 12 Greatest Overweight (x) 16 | 4 1 16 . Average Overweight (x) . | 1 . . . Largest Inventory Capacity 20 | 8 20 20 5 Average Capacity 12 | 7 15 14 5 Most Carried 8 | 6 8 6 5 Average Carried 5 | 2 6 4 3 Final Capacity 20 | 8 20 5 5 Final Carried 6 | 6 6 5 3 Class Distribution -------------------- 87% | Mutant 12% | Scavenger-Mutant Dominant Class ---------------- Mutant | -10/Materials Mutant | -10/Mines Scavenger-Mutant | -9/Materials Resources | -11 -10 -10 -9 ----------- Run | Yrd Mat Min Mat Matter Collected 406 | 203 77 126 . Remotely . | . . . . Salvage Created 521 | . 99 200 222 Parts 32 | . 3 12 17 Haulers Intercepted . | . . . . Recyclers Shooed . | . . . . Parts Field Recycled . | . . . . Retrieved Matter . | . . . . Parts Self-Destructed . | . . . . Prevented . | . . . . Kills | -11 -10 -10 -9 ------- Run | Yrd Mat Min Mat Combat Hostiles Destroyed 16 | . 2 10 4 Guns 7 | . 2 4 1 AOE 8 | . . 5 3 Classes Destroyed 7 | . 2 1 4 Recycler 1 | . . . 1 Operator 1 | . 1 . . Watcher 2 | . . . 2 Swarmer 6 | . . 6 . Grunt 8 | . 2 4 2 Brawler 1 | . . . 1 Sentry 1 | . . . 1 Best Kill Streak 4 | . 1 3 4 Combat Bots Only 3 | . 1 3 3 Max Kills in Single Turn 2 | . 1 2 2 Gunslinging . | . . . . Exploded 2 | . . 2 1 Melee . | . . . . Uniques/NPCs Destroyed . | . . . . Combat | -11 -10 -10 -9 -------- Run | Yrd Mat Min Mat Hostile Shots Fired 71 | . 7 39 25 Missed 14 | . . 10 4 Damage Taken 841 | . 79 386 376 Core 258 | . 12 97 149 Absorbed by Shields . | . . . . Redirected to Shielding 40 | . 3 36 1 Core Remaining (%) 78 | 100 . 56 . Volleys Fired 49 | . 8 25 16 Largest 2 | . 2 2 1 Hottest 90 | . 90 90 40 Shots Fired 71 | . 16 39 16 Gun 54 | . 16 28 10 Cannon . | . . . . Launcher 17 | . . 11 6 Special . | . . . . Kinetic . | . . . . Thermal 44 | . 16 28 . Explosive 17 | . . 11 6 Electromagnetic 10 | . . . 10 Robot Hit Streak 5 | . 5 4 5 Robot Miss Streak 4 | . 2 4 1 Penetration Max . | . . . . Secondary Targets 1 | . . 1 . Max Gunslinging Chain 1 | . . 1 . Shots Hit Robots 36 | . 10 15 11 Core Hits 30 | . 6 13 11 Critical Kills . | . . . . Critical Parts Destroyed . | . . . . Critical Strikes 3 | . 1 2 . Burn 3 | . 1 2 . Melee Attacks 1 | . . . 1 Impact . | . . . . Slashing . | . . . . Piercing . | . . . . Sneak Attacks 1 | . . . 1 Combat Hostiles . | . . . . Follow-up Attacks . | . . . . Damage Inflicted 893 | . 118 368 407 Guns 376 | . 118 175 83 Cannons . | . . . . Explosions 517 | . . 193 324 Melee . | . . . . Ramming . | . . . . Kinetic . | . . . . Thermal 293 | . 118 175 . Explosive 517 | . . 193 324 Electromagnetic 83 | . . . 83 Impact . | . . . . Slashing . | . . . . Piercing . | . . . . Highest Corruption . | . . . . Average Corruption . | . . . . Corruption Purged . | . . . . Corruption Blocked . | . . . . Overload Shots . | . . . . Overflow Damage 25 | . . 12 13 Projectiles . | . . . . Explosions 25 | . . 12 13 Melee . | . . . . Knockbacks . | . . . . Impact . | . . . . Kinetic . | . . . . Secondary . | . . . . Self-Inflicted Damage 108 | . . 31 77 Shots 4 | . . 1 3 Rammed . | . . . . Targets Rammed . | . . . . Kicked . | . . . . Crushed . | . . . . Highest Temperature 403 | . 108 403 66 Average Temperature 95 | . 43 154 27 Received Heat Transfer 270 | . 42 141 87 Effects 1 | . . 1 . Short Circuit 1 | . . 1 . Siege Activations . | . . . . Robots Corrupted . | . . . . Combat Hostiles . | . . . . Parts Fried . | . . . . Impact Corruptions . | . . . . Robots Melted 1 | . . 1 . Combat Hostiles 1 | . . 1 . Parts Melted 6 | . 2 4 . Heat Transferred 1003 | . 372 631 . Parts Sabotaged . | . . . . Parts Stolen . | . . . . Parts Stripped . | . . . . Power Chain Reactions . | . . . . Alert | -11 -10 -10 -9 ------- Run | Yrd Mat Min Mat Peak Influence 226 | . 70 214 226 Initial 83 | . . . 83 Average 61 | . 40 69 145 Maximum Alert Level 1 | . . 1 1 Low Security (%) 95 | 100 100 96 78 Level 1 4 | . . 3 21 Level 2 . | . . . . Level 3 . | . . . . Level 4 . | . . . . Level 5 . | . . . . High Security . | . . . . Max Security . | . . . . Squads Dispatched 2 | . 1 . 1 Investigation . | . . . . Extermination . | . . . . Reinforcement 2 | . 1 . 1 Assault . | . . . . Garrison . | . . . . Intercept . | . . . . Searches Triggered . | . . . . Construction Impeded . | . . . . Haulers Reinforced . | . . . . Active Scanning Responses . | . . . . Cargo Convoy Interrupts . | . . . . Stealth | -11 -10 -10 -9 --------- Run | Yrd Mat Min Mat Distress Signals 1 | . . . 1 Communications Jammed . | . . . . Distress Signals . | . . . . Times Spotted 22 | . 3 8 11 Peak Tracking Total 5 | . 1 3 5 Tactical Retreats 1 | . . . 1 Traps | -11 -10 -10 -9 ------- Run | Yrd Mat Min Mat Traps Triggered . | . . . . Indirectly . | . . . . Trap Hack Attempts 5 | . . . 5 Triggered . | . . . . Disarmed . | . . . . Reprogrammed . | . . . . Reused . | . . . . Traps Extracted . | . . . . Installed . | . . . . Triggered . | . . . . Machines | -11 -10 -10 -9 ---------- Run | Yrd Mat Min Mat Machines Disabled 5 | . . 4 1 Max in Single Turn 4 | . . 4 1 Machines Repaired . | . . . . Machines Dismantled . | . . . . Machines Sabotaged . | . . . . Overloaded Fab Kills . | . . . . Hacking | -11 -10 -10 -9 --------- Run | Yrd Mat Min Mat Machines Accessed 3 | . . . 3 Terminals 3 | . . . 3 Fabricators . | . . . . Repair Stations . | . . . . Recycling Units . | . . . . Scanalyzers . | . . . . Garrison Access . | . . . . Total Hacks 10 | . . . 10 Successful 7 | . . . 7 Failed 3 | . . . 3 Catastrophic 1 | . . . 1 Database Lockouts . | . . . . Manual 5 | . . . 5 Terminals 10 | . . . 10 Fabricators . | . . . . Repair Stations . | . . . . Recycling Units . | . . . . Scanalyzers . | . . . . Garrison Access . | . . . . Terminal Hacks 4 | . . . 4 Terminal Index 1 | . . . 1 Alert Level 1 | . . . 1 Unreport Threat 1 | . . . 1 Zone Layout 1 | . . . 1 Fabricator Hacks . | . . . . Repair Station Hacks . | . . . . Recycling Unit Hacks . | . . . . Scanalyzer . | . . . . Garrison Access Hacks . | . . . . Unauthorized Hacks 3 | . . . 3 Terminals 3 | . . . 3 Assimilate 1 | . . . 1 Botnet 2 | . . . 2 Fabricators . | . . . . Repair Stations . | . . . . Recycling Units . | . . . . Scanalyzers . | . . . . Garrison Access . | . . . . Data Cores Recovered . | . . . . Used . | . . . . Hacking Detections 3 | . . . 3 Full Trace Events . | . . . . Feedback Events . | . . . . Feedback Blocked . | . . . . Robot Schematics Acquired . | . . . . Robots Built . | . . . . Authchips . | . . . . Time . | . . . . Total Robot Build Rating . | . . . . Part Schematics Acquired . | . . . . Parts Built . | . . . . Authchips . | . . . . Time . | . . . . Total Part Build Rating . | . . . . Parts Repaired . | . . . . Time . | . . . . Parts Recycled . | . . . . Recycled Matter . | . . . . Retrieved Matter . | . . . . Retrieved Components . | . . . . Parts Scanalyzed . | . . . . Part Schematics Acquired . | . . . . Parts Damaged . | . . . . Bothacking | -11 -10 -10 -9 ------------ Run | Yrd Mat Min Mat Used RIF Installer . | . . . . Robots Hacked . | . . . . Non-combat . | . . . . Combat . | . . . . Robot Hacks Applied . | . . . . Relay Couplers Released . | . . . . Fabnet Peak Effective % . | . . . . Robots Rewired . | . . . . Allies Hacked . | . . . . Hacks Repelled . | . . . . Allies | -11 -10 -10 -9 -------- Run | Yrd Mat Min Mat Total Allies 1 | . . . 1 Largest Group 1 | . . . 1 Highest-Rated Group 10 | . . . 10 Highest-Rated Ally 10 | . . . 10 Total Orders . | . . . . Ally Attacks . | . . . . Total Damage . | . . . . Kills . | . . . . Allies Corrupted . | . . . . Allies Melted . | . . . . Intel | -11 -10 -10 -9 ------- Run | Yrd Mat Min Mat Robot Analysis Total . | . . . . Derelict Logs Recovered 1 | . . 1 . Drone Launches . | . . . . Drone Recoveries . | . . . . Exploration | -11 -10 -10 -9 ------------- Run | Yrd Mat Min Mat Turns Passed 1229 | 139 444 475 171 Spaces Moved 856 | 70 192 354 240 Core 35 | 33 . 2 . Treads 275 | 37 192 46 . Legs 34 | . . 34 . Wheels . | . . . . Hover . | . . . . Flight 512 | . . 272 240 Fastest Speed 34 | 50 160 37 34 Average Speed 110 | 178 205 98 34 Slowest Speed 850 | 250 240 850 34 Overloaded Moves . | . . . . Propulsion Burnouts . | . . . . Robots Hopped 5 | . . 5 . Cave-ins Triggered . | . . . . Exploration Rate (%) 30 | 6 29 64 23 Regions Visited 3 Branch Regions 1 Pre-discovered Areas . | . . . . Known Exits Taken . | . . . . Unknown Exits Taken 3 | 1 1 1 . Scrap Searched 1 | . . 1 . Spaces Dug 15 | . . 15 . Terrain Destroyed 113 | . . 91 22 Melee . | . . . . Projectile . | . . . . AOE 113 | . . 91 22 Terrain Rammed . | . . . . Walls Destroyed . | . . . . Machines Disabled . | . . . . Actions | -11 -10 -10 -9 --------- Run | Yrd Mat Min Mat Total 1058 | 81 226 439 312 Wait 89 | . 20 31 38 Move 844 | 69 191 344 240 Hop 4 | . . 4 . Pick Up 15 | 6 2 7 . Fast Attach 14 | 6 2 5 1 Attach 9 | . . 5 4 Detach 5 | . . 2 3 Swap 6 | . . 3 3 Drop 17 | . 3 13 1 Fire 49 | . 8 25 16 Melee 1 | . . . 1 Ram . | . . . . Kick . | . . . . Crush . | . . . . Escape Stasis . | . . . . Rewire . | . . . . Trap 5 | . . . 5 Miscellaneous . | . . . . Route ------- -11/Scrapyard -10/Materials -10/Mines -9/Materials (discovered 1 exit: Mat) History --------- Turn | Location | Event 2 | -11/Scrapyard | Met Revision 17 14 | -11/Scrapyard | Discovered new exit (range 15) 140 | -11/Scrapyard | Entered Materials 321 | -10/Materials | Build established: Mutant 463 | -10/Materials | Discovered new exit (range 16) 584 | -10/Materials | Entered Mines 920 | -10/Mines | Assembled infested the area 1025 | -10/Mines | Learned location of 1 exit from Materials 1042 | -10/Mines | Discovered new exit (range 10) 1059 | -10/Mines | Entered Materials 1059 | -9/Materials | Evolved 2 slots: Power x1, Propulsion x1 1060 | -9/Materials | Identified exit to Materials 1230 | -9/Materials | Self-destructed Last Messages --------------- Destroyed Grenade Launcher. Flight Unit destroyed. Destroyed Flight Unit. Terminal disabled. W-16 Scout destroyed. R-06 Scavenger destroyed. K-01 Serf collects debris. R-06 Scavenger collects Imp. Ion Engine. K-01 Serf collects debris. The unstable cave ceiling collapses. K-01 Serf cleans the Nuclear Reactor. Y-45 Defender IFF system glitched. R-06 Scavenger collects Heat Sink. U-05 Engineer lays Concrete. K-01 Serf collects debris. U-05 Engineer lays Concrete. Y-45 Defender misfires. U-05 Engineer lays Concrete. K-01 Serf collects debris. R-06 Scavenger collects Lgt. Ion Engine. Map ----- +----------------------------------------------------+ | ?????????????????????????????????????????????????? | | ?????????????????????????????????????????????????? | | ?????????????????????????????????????????????????? | | ?????????????????????????????????????????????????? | | ?????????????????????????????????????????????????? | | ?????????????????????????????????????????????????? | | ?????????????????????????????????????????????????? | | ?????????????????????????????????????????????????? | | ?????????????????????????????????????????????????? | | ?????????????????????????????????????????????????? | | ?????????????????????????????????????????????????? | | ?????????????????????????????????????????????????? | | #########????????????????????????????????????????? | | ????????????????????????????????????????? | | ????????????????????????????????????????? | | ????????????????????????????????????????? | | ????????????????????????????????????????? | | ????????????????????????????????????????? | | ????????????????????????????????????????? | | ????????????????????????????????????????? | | ????????????##???##?##??????????????????? | | ###+################## ###=##%#######????????????? | | ?# =%[% #????????????? | | ## ###########+##### !"k!r a #????????????? | | #???????? ??# Y u """ """ / ??????? | | ## #???????# ### @ k""" """??????????????? | | # #???????#* ## """ ""???????????????? | | # #???????# # u ??????????????? | | # #???????# "T" #######/#######??????????????? | | + #???????# #?????# #????????????????????? | | # #???????########?????# ????????????????????? | | # #????????????????????# ???????????????????? | | # #????????????????????? ???????????????????? | | # #?????????????????????####??????????????????? | | # #???????????????????????????????????????????? | | #???????????????????????????????????????????? | | #???????????????????????????????????????????? | | #???????????????????????????????????????????? | | /* #???????????????????????????????????????????? | | ! #???????????????????????????????????????????? | | == #???????????????????????????????????????????? | | [ #???????????????????????????????????????????? | | ! #???????????????????????????????????????????? | | [! #?????????#####?????????????????????????????? | | #?????????# **#?????????????????????????????? | | | #?????????# **#?????????????????????????????? | | ## ########### //#?????????????????????????????? | | ?# //#?????????????????????????????? | | ?# !!#?????????????????????????????? | | ## !!#?????????????????????????????? | +----------------------------------------------------+ Best States ------------- Heat Dissipation 28 Energy Generation 15 Energy Capacity 275 Matter Stores 300 Matter Capacity 300 Sight Range 16 Terrain Scan Density 10 ECM Strength 1 Propulsion Shielding 33 Evasion (%) 63 Recoil Reduction 2 Item Schematics ----------------- None Robot Schematics ------------------ None Fabricated ------------ Nothing Alien Tech Used ----------------- None Achievements -------------- Dramatic Entrance Let's See Who's Tougher Challenges ------------ None Game ------ Seed CobblerSpectralShredder Manual? 0 Play Time 00:18:12 Cumulative 19.7 hours Start 2024.04.10 @ 23:03:23 End 2024.04.10 @ 23:20:04 Sessions 1 Manual Loads 0 Difficulty Rogue Special Mode None Game No. 40 Rogue 40 Adventurer 0 Explorer 0 Win Type - Total 0 Types 0/0/0/0/0/0/0/0/0 Lore% 15 Gallery% 22 Achievement% 24 Wizard Run 0 Options --------- Layout 1 ASCII 0 Keyboard 0 Movement Numpad Keybinds 0 Fullscreen 1 Font 32/SmallcapsGlow Map View 50x35 Zoom Use 0% Tactical HUD 0 Map Filters NONE Filters NONE Steam 1 RUN: 6e6eed82-5827-476e-8b6f-27caa5535eb1